Cogmind - Beta 13 @@@ ROGUE MODE // 2024.03.30 @ 17:06:51 Player: firstiteration Result: Destroyed by D7-JE7(R) with Subdweller Laser Performance ------------- Evolutions (0) 0 Regions Visited (2) 400 Robots Destroyed (13) 65 Value Destroyed (286) 286 Prototype IDs (1) 20 Alien Tech Used (0) 0 Bonus (0) 0 TOTAL SCORE: 771 Bonus ------- None Cogmind --------- Core Integrity 0/250 Matter 208/300 Energy 200/200 System Corruption 2% Temperature Cool (6) Movement Hovering (56) Location -10/Subcaves Parts ------- > --- POWER (1) -------- Subdweller Power Source > --- PROPULSION (2) --- Hover Unit Hover Unit > --- UTILITY (2) ------ Signal Interpreter Seismic Detector > --- WEAPON (2) ------- Improved Assault Rifle Improved Assault Rifle > --- INVENTORY (5) ---- Hover Unit Hover Unit Scrap Shield Improved Assault Rifle Peak State ------------ > --- POWER ------------ Subdweller Power Source > --- PROPULSION ------- Hover Unit Hover Unit > --- UTILITY ---------- Signal Interpreter Seismic Detector > --- WEAPON ----------- Improved Assault Rifle Improved Assault Rifle > --- INVENTORY -------- Hover Unit Hover Unit Scrap Shield Improved Assault Rifle [Rating: 12] Favorites ----------- Power Light Ion Engine Engine Light Ion Engine Propulsion Hover Unit Leg Aluminum Leg Wheel Wheel Hover Unit Hover Unit Flight Unit Flight Unit Utility Signal Interpreter Device Seismic Detector Storage Small Storage Unit Processor Signal Interpreter Weapon Improved Assault Rifle Energy Gun EM Pulse Gun Energy Cannon Light EM Pulse Cannon Ballistic Gun Improved Assault Rifle Special Melee Weapon Datajack Build | -11 -10 -10 ------- Run | Yrd Mat Sub Slots Evolved . | . . . Power . | . . . Propulsion . | . . . Utility . | . . . Weapon . | . . . Parts Attached 30 | 5 24 1 Power 3 | 1 1 1 Engine 3 | 1 1 1 Core . | . . . Reactor . | . . . Propulsion 10 | 2 8 . Treads . | . . . Leg 2 | . 2 . Wheel 2 | 2 . . Hover 2 | . 2 . Flight 4 | . 4 . Utility 4 | . 4 . Device 2 | . 2 . Storage 1 | . 1 . Processor 1 | . 1 . Hackware . | . . . Protection . | . . . Artifact . | . . . Weapon 13 | 2 11 . Energy Gun 2 | 2 . . Energy Cannon 3 | . 3 . Ballistic Gun 7 | . 7 . Ballistic Cannon . | . . . Launcher . | . . . Special Weapon . | . . . Impact Weapon . | . . . Slashing Weapon . | . . . Piercing Weapon . | . . . Special Melee Weapon 1 | . 1 . Unidentified Prototypes 1 | . 1 . Parts Lost 7 | . 7 . Power 2 | . 2 . Propulsion 3 | . 3 . Utility . | . . . Weapon 2 | . 2 . Highest Loss Streak 4 | . 4 . To Critical Strikes 1 | . 1 . Average Slot Usage (%) 76 | . 73 91 Engine 5 | . 5 6 Wheel 4 | . 5 . Hover 17 | . 16 28 Flight 4 | . 4 . Device 9 | . 9 14 Processor 8 | . 7 14 Energy Cannon 3 | . 4 . Ballistic Gun 20 | . 19 28 Naked Turns . | . . . Heaviest Build 12 | 7 11 12 Greatest Support 20 | 20 20 12 Greatest Overweight (x) 2 | . 2 1 Average Overweight (x) . | . . . Largest Inventory Capacity 8 | 5 8 5 Average Capacity 5 | 5 5 5 Most Carried 5 | 2 5 5 Average Carried 3 | . 4 4 Final Capacity 5 | 5 5 5 Final Carried 5 | 1 5 5 Class Distribution -------------------- 100% | Mutant Dominant Class ---------------- Mutant | -10/Materials Mutant | -10/Subcaves Resources | -11 -10 -10 ----------- Run | Yrd Mat Sub Matter Collected 642 | 250 301 91 Remotely . | . . . Salvage Created 516 | 76 310 130 Parts 33 | 5 18 10 Haulers Intercepted . | . . . Recyclers Shooed . | . . . Parts Field Recycled . | . . . Retrieved Matter . | . . . Parts Self-Destructed . | . . . Prevented . | . . . Kills | -11 -10 -10 ------- Run | Yrd Mat Sub Combat Hostiles Destroyed 10 | 1 9 . Guns 8 | 1 7 . Cannons 1 | . 1 . Classes Destroyed 4 | 2 2 . Worker 1 | 1 . . Watcher 2 | . 2 . Swarmer 5 | . 5 . Grunt 5 | 1 4 . Best Kill Streak 3 | 1 3 . Combat Bots Only 3 | 1 3 . Max Kills in Single Turn 2 | 1 2 . Gunslinging 1 | . 1 . Exploded . | . . . Melee . | . . . Uniques/NPCs Destroyed . | . . . Combat | -11 -10 -10 -------- Run | Yrd Mat Sub Hostile Shots Fired 123 | 4 114 5 Missed 38 | 1 34 3 Damage Taken 906 | 33 830 43 Core 250 | 12 220 18 Absorbed by Shields . | . . . Core Remaining (%) 95 | 95 . . Volleys Fired 69 | 4 56 9 Largest 2 | 2 2 2 Hottest 112 | 80 112 46 Shots Fired 98 | 8 72 18 Gun 77 | 8 51 18 Cannon 21 | . 21 . Launcher . | . . . Special . | . . . Kinetic 69 | . 51 18 Thermal . | . . . Explosive . | . . . Electromagnetic 29 | 8 21 . Robot Hit Streak 15 | 3 5 15 Robot Miss Streak 5 | 2 5 1 Penetration Max . | . . . Secondary Targets 1 | . 1 . Max Gunslinging Chain 1 | . 1 . Shots Hit Robots 55 | 4 35 16 Core Hits 23 | 3 14 6 Critical Kills . | . . . Critical Parts Destroyed . | . . . Critical Strikes . | . . . Melee Attacks . | . . . Impact . | . . . Slashing . | . . . Piercing . | . . . Sneak Attacks . | . . . Combat Hostiles . | . . . Follow-up Attacks . | . . . Damage Inflicted 978 | 51 687 240 Guns 710 | 51 419 240 Cannons 268 | . 268 . Explosions . | . . . Melee . | . . . Ramming . | . . . Kinetic 659 | . 419 240 Thermal . | . . . Explosive . | . . . Electromagnetic 319 | 51 268 . Impact . | . . . Slashing . | . . . Piercing . | . . . Highest Corruption 2 | . 2 2 Average Corruption 2 | . 2 2 Corruption Purged . | . . . Corruption Blocked . | . . . Effects 16 | . 14 2 Message Errors 3 | . 2 1 Matter Fused 8 | . 7 1 Heat Flow Errors 2 | . 2 . Energy Discharges 1 | . 1 . Data Loss (minor) 1 | . 1 . Misfires 1 | . 1 . Overload Shots . | . . . Overflow Damage 26 | . 26 . Projectiles 26 | . 26 . Explosions . | . . . Melee . | . . . Knockbacks . | . . . Impact . | . . . Kinetic . | . . . Secondary . | . . . Self-Inflicted Damage . | . . . Shots . | . . . Rammed . | . . . Targets Rammed . | . . . Kicked . | . . . Crushed . | . . . Highest Temperature 140 | 72 140 . Average Temperature 30 | 33 30 . Received Heat Transfer 291 | 18 267 6 Siege Activations . | . . . Robots Corrupted 1 | . 1 . Combat Hostiles 1 | . 1 . Parts Fried 8 | . 8 . Impact Corruptions . | . . . Robots Melted . | . . . Combat Hostiles . | . . . Parts Melted . | . . . Heat Transferred . | . . . Parts Sabotaged . | . . . Parts Stolen . | . . . Parts Stripped . | . . . Power Chain Reactions . | . . . Alert | -11 -10 -10 ------- Run | Yrd Mat Sub Peak Influence 215 | 25 215 . Initial 16 | . 16 . Average 55 | 17 63 . Maximum Alert Level 1 | . 1 . Low Security (%) 93 | 100 91 . Level 1 6 | . 8 . Level 2 . | . . . Level 3 . | . . . Level 4 . | . . . Level 5 . | . . . High Security . | . . . Max Security . | . . . Squads Dispatched 2 | . 2 . Investigation 1 | . 1 . Extermination . | . . . Reinforcement 1 | . 1 . Assault . | . . . Garrison . | . . . Intercept . | . . . Searches Triggered . | . . . Construction Impeded . | . . . Haulers Reinforced . | . . . Active Scanning Responses . | . . . Cargo Convoy Interrupts . | . . . Stealth | -11 -10 -10 --------- Run | Yrd Mat Sub Distress Signals 1 | . 1 . Communications Jammed . | . . . Distress Signals . | . . . Times Spotted 22 | 1 15 6 Peak Tracking Total 4 | 1 4 1 Tactical Retreats 1 | . 1 . Traps | -11 -10 -10 ------- Run | Yrd Mat Sub Traps Triggered 2 | . 2 . Indirectly . | . . . Trap Hack Attempts . | . . . Triggered . | . . . Disarmed . | . . . Reprogrammed . | . . . Reused . | . . . Traps Extracted . | . . . Installed . | . . . Triggered 1 | . 1 . Machines | -11 -10 -10 ---------- Run | Yrd Mat Sub Machines Disabled 2 | . 2 . Max in Single Turn 1 | . 1 . Machines Repaired . | . . . Machines Dismantled . | . . . Machines Sabotaged . | . . . Overloaded Fab Kills . | . . . Hacking | -11 -10 -10 --------- Run | Yrd Mat Sub Machines Accessed 4 | . 4 . Terminals 3 | . 3 . Fabricators . | . . . Repair Stations 1 | . 1 . Recycling Units . | . . . Scanalyzers . | . . . Garrison Access . | . . . Total Hacks 6 | . 6 . Successful 5 | . 5 . Failed 1 | . 1 . Catastrophic . | . . . Database Lockouts . | . . . Manual . | . . . Terminals 3 | . 3 . Fabricators . | . . . Repair Stations 3 | . 3 . Recycling Units . | . . . Scanalyzers . | . . . Garrison Access . | . . . Terminal Hacks 3 | . 3 . Alert Level 3 | . 3 . Fabricator Hacks . | . . . Repair Station Hacks 2 | . 2 . Scan Component 2 | . 2 . Recycling Unit Hacks . | . . . Scanalyzer . | . . . Garrison Access Hacks . | . . . Unauthorized Hacks . | . . . Terminals . | . . . Fabricators . | . . . Repair Stations . | . . . Recycling Units . | . . . Scanalyzers . | . . . Garrison Access . | . . . Data Cores Recovered . | . . . Used . | . . . Hacking Detections 1 | . 1 . Full Trace Events 1 | . 1 . Feedback Events . | . . . Feedback Blocked . | . . . Robot Schematics Acquired . | . . . Robots Built . | . . . Authchips . | . . . Time . | . . . Total Robot Build Rating . | . . . Part Schematics Acquired . | . . . Parts Built . | . . . Authchips . | . . . Time . | . . . Total Part Build Rating . | . . . Parts Repaired . | . . . Time . | . . . Parts Recycled . | . . . Recycled Matter . | . . . Retrieved Matter . | . . . Retrieved Components . | . . . Parts Scanalyzed . | . . . Part Schematics Acquired . | . . . Parts Damaged . | . . . Bothacking | -11 -10 -10 ------------ Run | Yrd Mat Sub Used RIF Installer . | . . . Robots Hacked . | . . . Non-combat . | . . . Combat . | . . . Robot Hacks Applied . | . . . Relay Couplers Released . | . . . Fabnet Peak Effective % . | . . . Robots Rewired . | . . . Allies Hacked . | . . . Hacks Repelled . | . . . Allies | -11 -10 -10 -------- Run | Yrd Mat Sub Total Allies . | . . . Largest Group . | . . . Highest-Rated Group . | . . . Highest-Rated Ally . | . . . Total Orders . | . . . Ally Attacks . | . . . Total Damage . | . . . Kills . | . . . Allies Corrupted . | . . . Allies Melted . | . . . Intel | -11 -10 -10 ------- Run | Yrd Mat Sub Robot Analysis Total . | . . . Derelict Logs Recovered 1 | . . 1 Drone Launches . | . . . Drone Recoveries . | . . . Exploration | -11 -10 -10 ------------- Run | Yrd Mat Sub Turns Passed 1306 | 186 977 143 Spaces Moved 1093 | 138 817 138 Core 25 | 17 8 . Treads . | . . . Legs 15 | . 15 . Wheels 258 | 121 137 . Hover 582 | . 444 138 Flight 213 | . 213 . Fastest Speed 37 | 50 37 56 Average Speed 85 | 76 90 62 Slowest Speed 150 | 80 150 120 Overloaded Moves . | . . . Propulsion Burnouts . | . . . Robots Hopped 1 | . 1 . Cave-ins Triggered . | . . . Exploration Rate (%) 31 | 8 76 11 Regions Visited 2 Branch Regions 1 Pre-discovered Areas 1 | . . 1 Known Exits Taken 1 | . 1 . Unknown Exits Taken 1 | 1 . . Scrap Searched . | . . . Spaces Dug . | . . . Terrain Destroyed . | . . . Melee . | . . . Projectile . | . . . AOE . | . . . Terrain Rammed . | . . . Walls Destroyed . | . . . Machines Disabled . | . . . Actions | -11 -10 -10 --------- Run | Yrd Mat Sub Total 1370 | 210 983 177 Wait 126 | 58 42 26 Move 1089 | 137 814 138 Hop 1 | . 1 . Pick Up 34 | 6 27 1 Fast Attach 3 | . 2 1 Attach 17 | 5 12 . Detach 2 | . 2 . Swap 10 | . 10 . Drop 19 | . 17 2 Fire 69 | 4 56 9 Melee . | . . . Ram . | . . . Kick . | . . . Crush . | . . . Escape Stasis . | . . . Rewire . | . . . Trap . | . . . Miscellaneous . | . . . Route ------- -11/Scrapyard -10/Materials (discovered 4 exits: *Mat / *Min x2 / *Sub) -10/Subcaves History --------- Turn | Location | Event 2 | -11/Scrapyard | Met Revision 17 53 | -11/Scrapyard | Discovered new exit (range 8) 187 | -11/Scrapyard | Entered Materials 300 | -10/Materials | Build established: Mutant 384 | -10/Materials | Lost 3 parts (1p1n1w) 510 | -10/Materials | Discovered new exit (range 11) 536 | -10/Materials | Core integrity fell below 50% 557 | -10/Materials | Core integrity fell below 20% 581 | -10/Materials | Lost 4 parts (1p2n1w) 649 | -10/Materials | Discovered new exit (range 10) 663 | -10/Materials | Identified exit to Mines 851 | -10/Materials | Discovered new exit (range 15) 868 | -10/Materials | Identified exit to Materials 1142 | -10/Materials | Discovered new exit (range 10) 1163 | -10/Materials | Identified exit to Subcaves 1164 | -10/Materials | Entered Subcaves 1177 | -10/Subcaves | Learned location of Mines (-8) 1305 | -10/Subcaves | Ambushed by swarm of Subdwellers 1306 | -10/Subcaves | Ambushed by Subdwellers from Twisted Machinery 1306 | -10/Subcaves | Ambushed by Subdwellers from Twisted Machinery 1307 | -10/Subcaves | Destroyed by D7-JE7(R) with Subdweller Laser Last Messages --------------- Acquired Scrap Shield. Subatomizers dissect the Terrain Scanner. System corrupted: Matter fused (-6). GI-045(R) destroyed. Acquired Sub. Power Source. [Achievement: Crack Shot] 95-ZRE(R) destroyed. Acquired 36 matter. 2I-Z5G(R) destroyed. Subatomizers dissect the Sub. Monowheel. Acquired 55 matter. A mess of Twisted Machinery falls from the cavern ceiling. W9-P61(R) comes tumbling into view. YY-KEG(h): "The Subs are coming!" YK-GKO(R) angrily emerges from the Twisted Machinery. D7-JE7(R) angrily emerges from the Twisted Machinery. 4L-A4I(R) emerges from the Twisted Machinery. Map ----- +----------------------------------------------------+ | ?????????????????????????????????????????????????? | | ?????????????????????????????????????????????????? | | ?????????????????????????????????????????????????? | | ?????????????????????????????????????????????????? | | ?????????????????????????????????????????????????? | | ?????????????????????????????????????????????????? | | ?????????????????????????????????????????????????? | | ?????????????????????????????????????????????????? | | ?????????????????????????????????????????????????? | | ?????????????????????????????????????????????????? | | ????????????????????#####???????##????#??????????? | | ????????????????##??# ##?????# #??? ????????? | | ???????????##### #?## ##??## #??# ????????? | | ??????????## ### #### ### ?????????? | | ??????????# ## ?????????? | | ??????????## ## ## ??????????? | | ???????????## ### ## #????????????? | | ???????????## ### #????????????? | | ???????????# # # # #####????????? | | ???????????## #????????? | | ????????????# ##???????? | | ????????#### # ## ##??????? | | ###???## ##### ##?????? | | #?## ##???##h ##????? | | ??# ## #####??#RR### #????? | | ???# ###### #??#R@R### #????? | | ???# ### #??#"R##?### ##????? | | ???## #??#""#???## ## #?????? | | ????## #??? #"#???# #??### #????? | | ?????# ##?? #R##???#####???????###????? | | ?????#### ! ##?? #?#????????????????????????? | | ????????#&"&=# ## #??????????????????????????? | | ####????#! & ! #????????????????????????????? | | #???#&&= &% #### #???????????????????????????? | | ???# & =##????#???????????????????????????? | | ???#" "" #####?????????????????????????????? | | #??## ## #####?????????????????????????? | | ### #?????????????????????????? | | ?# ## ## #?????????????????????????? | | ??# ##### ##?????????????????????????? | | ??## ##???# ###??????????????????????????? | | ???# #????###????????????????????????????? | | ???# ##???????????????????????????????????? | | ???# #????????????????????????????????????? | | ##### ###??????????????????????????????????? | | # ## #??????????????????????????????????? | | = ## #?????????????????????????????????? | | ! #? #????????????????????????????????? | | ### #??# #???????????????????????????????? | | #?##########????##???????????????????????????????? | +----------------------------------------------------+ Best States ------------- Heat Dissipation 25 Energy Generation 15 Energy Capacity 200 Matter Stores 300 Matter Capacity 300 Sight Range 16 Terrain Scan Range 14 Terrain Scan Density 10 Evasion (%) 62 Item Schematics ----------------- None Robot Schematics ------------------ None Fabricated ------------ Nothing Alien Tech Used ----------------- None Achievements -------------- Crack Shot Power Corrupts Risk Taker Challenges ------------ None Game ------ Seed TransdimensionalChargeWand Manual? 0 Play Time 00:21:34 Cumulative 0.9 hours Start 2024.03.30 @ 16:45:14 End 2024.03.30 @ 17:06:51 Sessions 1 Manual Loads 0 Difficulty Rogue Special Mode None Game No. 2 Rogue 2 Adventurer 0 Explorer 0 Win Type - Total 0 Types 0/0/0/0/0/0/0/0/0 Lore% 0 Gallery% 2 Achievement% 2 Wizard Run 0 Options --------- Layout 1 ASCII 0 Keyboard 0 Movement Mouse Keybinds 0 Fullscreen 1 Font 24/Smallcaps Map View 50x35 Zoom Use 0% Tactical HUD 0 Map Filters NONE Filters NONE Steam 1 RUN: 8c3fd811-1b1b-4b8d-be5b-ef9cb1e83a80